bitfinex/quotes_SOLUSD_20250508
["timestamp","ask_amount","ask_price","bid_price","bid_amount"]
[1746682043075,6.79773561,150.25,150.24,18.74085996]
[1746682043283,6.79773561,150.25,150.18,16.16]
[1746682043482,6.79773561,150.25,150.24,18.74085996]
[1746682044057,6.79773561,150.25,150.23,18.74085996]
[1746682046083,6.79773561,150.25,150.22,18.74085996]
[1746682048882,6.79773561,150.25,150.23,18.74085996]
[1746682049184,18.64964886,150.24,150.23,18.74085996]
[1746682051787,18.61788334,150.24,150.23,18.74085996]
[1746682051979,18.74085996,150.28,150.23,18.74085996]
[1746682051980,134.6,150.28,150.23,18.74085996]
[1746682052168,134.6,150.28,150.25,18.74085996]
[1746682052483,134.6,150.28,150.26,18.74085996]
[1746682053074,51.39387212,150.31,150.27,18.74085996]
[1746682054267,32.65301216,150.31,150.27,18.74085996]
[1746682054487,51.39387212,150.31,150.27,18.74085996]
[1746682055693,32.65301216,150.31,150.27,18.74085996]
[1746682056571,26.0,150.31,150.28,18.74085996]
[1746682057584,32.65294794,150.31,150.28,18.74085996]
[1746682058085,32.65294794,150.31,150.29,18.74085996]
[1746682058292,134.6,150.32,150.29,18.74085996]
[1746682058693,134.6,150.32,150.3,18.74085996]
[1746682063101,134.6,150.35,150.31,18.74085996]
[1746682064100,141.25123539,150.35,150.31,18.74085996]
[1746682064499,134.6,150.35,150.32,18.74085996]
[1746682064698,134.6,150.35,150.33,18.74085996]
[1746682065208,18.64964886,150.4,150.34,18.74085996]
[1746682065381,25.29858503,150.4,150.36,18.74085996]
[1746682065700,44.03944499,150.4,150.35,18.74085996]
[1746682066009,6.64893617,150.4,150.36,18.74085996]
[1746682066706,141.24851646,150.41,150.36,25.3915365]
[1746682067004,134.6,150.41,150.38,18.74085996]
[1746682067601,6.64832718,150.42,150.39,18.74085996]
[1746682068297,32.64761018,150.43,150.39,18.74085996]
[1746682068681,51.38847014,150.43,150.39,18.74085996]
[1746682068905,32.64761018,150.43,150.39,18.74085996]
[1746682071510,32.64761018,150.43,150.4,18.74085996]
[1746682071689,32.64761018,150.43,150.39,18.74085996]
[1746682074413,6.64584302,150.47,150.42,18.74085996]
[1746682074714,6.64584302,150.47,150.4,16.36]
[1746682074915,6.64584302,150.47,150.43,18.74085996]
[1746682075296,25.38670298,150.47,150.43,18.74085996]
[1746682076398,6.64584302,150.47,150.43,18.74085996]
[1746682077016,25.38670298,150.47,150.43,18.74085996]
[1746682077640,6.64584302,150.47,150.43,18.74085996]
[1746682079315,6.64584302,150.47,150.44,18.74085996]
[1746682079619,23.26045058,150.47,150.44,18.74085996]
[1746682080295,23.26045058,150.47,150.43,18.74085996]
[1746682082505,23.26045058,150.47,150.45,18.74085996]
[1746682083012,23.26045058,150.47,150.42,1.5947]
[1746682083221,23.26045058,150.47,150.45,18.74085996]
[1746682083595,23.26045058,150.47,150.44,18.74085996]
[1746682084009,6.64495979,150.49,150.46,18.74085996]
[1746682084214,23.25735928,150.49,150.45,16.36]
[1746682084413,23.25735928,150.49,150.46,18.74085996]
[1746682084818,23.25735928,150.49,150.45,35.10085996]
[1746682085017,23.25735928,150.49,150.45,16.36]
[1746682085321,23.25735928,150.49,150.46,18.74085996]
[1746682085532,6.64495979,150.49,150.46,18.74085996]
[1746682086107,6.64451827,150.5,150.46,18.74085996]
[1746682086641,6.64451827,150.5,150.46,18.70909443]
[1746682087009,6.64451827,150.5,150.47,18.74085996]
[1746682087910,6.64451827,150.5,150.46,18.74085996]
[1746682088111,41.90391767,150.51,150.46,18.74085996]
[1746682088306,6.6440768,150.51,150.48,18.74085996]
[1746682088519,6.6440768,150.51,150.49,18.74085996]
[1746682089529,6.64363539,150.52,150.49,18.74085996]
[1746682089716,6.64363539,150.52,150.49,11.66319597]
[1746682090437,6.64363539,150.52,150.5,11.66319597]
[1746682091929,6.64363539,150.52,150.5,18.65865883]
[1746682092434,6.64363539,150.52,150.51,18.65865883]
[1746682092932,6.64363539,150.52,150.5,18.65865883]
[1746682093814,6.64319404,150.53,150.5,18.65865883]
[1746682094332,6.64319404,150.53,150.51,18.65865883]
[1746682095426,6.64275275,150.54,150.51,18.65865883]
[1746682095933,6.64275275,150.54,150.52,18.65865883]
[1746682096716,6.64231152,150.55,150.52,18.65865883]
[1746682097321,23.24809033,150.55,150.52,18.65865883]
[1746682097844,23.24809033,150.55,150.51,18.65865883]
[1746682101052,23.24809033,150.55,150.52,18.65865883]
[1746682102137,18.65865883,150.54,150.5,16.26]
[1746682102549,18.65865883,150.53,150.5,16.26]
[1746682103149,18.65865883,150.51,150.5,16.26]
[1746682103333,18.65865883,150.51,150.48,1.5396]
[1746682104343,23.25272388,150.52,150.48,20.19825883]
[1746682104948,23.25272388,150.52,150.49,18.65865883]
[1746682106239,23.25272388,150.52,150.48,1.5396]
[1746682106427,6.64363539,150.52,150.49,18.65865883]
[1746682106636,6.64363539,150.52,150.5,18.65865883]
[1746682108342,6.64319404,150.53,150.5,18.65865883]
[1746682108834,6.64319404,150.53,150.48,1.5396]
[1746682109033,6.64319404,150.53,150.5,18.65865883]
[1746682109938,23.25117915,150.53,150.49,18.65865883]
[1746682110119,18.65865883,150.51,150.46,16.26]
[1746682110327,18.65865883,150.51,150.46,34.91865883]
[1746682110531,6.64451827,150.5,150.46,34.91865883]
[1746682111340,6.64451827,150.5,150.47,18.65865883]
[1746682111850,6.64451827,150.5,150.47,11.66728917]
[1746682113655,23.25427858,150.51,150.47,11.66728917]
[1746682114151,18.64964886,150.5,150.46,27.92728917]
[1746682114349,11.66728917,150.47,150.42,16.26]
[1746682114556,11.66728917,150.46,150.42,16.26]
[1746682114750,11.66728917,150.48,150.43,11.66728917]
[1746682115253,11.66728917,150.48,150.42,16.26]
[1746682115458,26.0,150.49,150.45,11.66728917]
[1746682115636,26.0,150.49,150.46,11.66728917]
[1746682115837,6.64540138,150.48,150.46,11.66728917]
[1746682116260,6.64451827,150.5,150.47,11.66728917]
[1746682118760,6.64319404,150.53,150.49,11.66728917]
[1746682118930,6.64319404,150.53,150.48,1.5731]
[1746682118931,18.31048321,150.53,150.48,1.5731]
[1746682119130,11.66728917,150.51,150.46,16.16]
[1746682119348,11.66728917,150.51,150.46,27.82728917]
[1746682120936,23.25581395,150.5,150.46,27.82728917]
[1746682121344,23.25581395,150.5,150.47,11.66728917]
[1746682123162,16.61129568,150.5,150.47,11.66728917]
[1746682123362,30.31693803,150.49,150.44,1.5731]
[1746682123663,18.64964886,150.49,150.45,11.66728917]
[1746682124044,18.64964886,150.49,150.46,11.66728917]
[1746682124245,6.6440768,150.51,150.47,11.66728917]
[1746682124452,6.6440768,150.51,150.49,11.66728917]
[1746682124656,6.6440768,150.51,150.44,1.5731]
[1746682124955,6.6440768,150.51,150.48,11.66728917]
[1746682125536,23.25293495,150.52,150.48,11.66728917]
[1746682127468,23.25293495,150.52,150.44,17.7331]
[1746682127644,23.25293495,150.52,150.48,11.66728917]
[1746682128669,23.25293495,150.52,150.47,11.66728917]
[1746682129443,23.25293495,150.52,150.48,11.66728917]
[1746682131275,23.25293495,150.52,150.49,11.66728917]
[1746682131451,23.25293495,150.52,150.48,11.66728917]
[1746682132146,23.25293495,150.52,150.47,11.66728917]
[1746682133269,23.25293495,150.52,150.44,17.7331]
[1746682133463,23.25293495,150.52,150.47,11.66728917]
[1746682136370,23.25293495,150.52,150.48,11.66728917]
[1746682136576,23.25293495,150.52,150.47,11.66728917]
[1746682141053,23.25293495,150.52,150.48,11.66728917]
[1746682143960,6.64363539,150.52,150.51,11.66728917]
[1746682145087,25.29240161,150.54,150.51,11.66728917]
[1746682145789,6.64275275,150.54,150.52,11.66728917]
[1746682146291,6.64275275,150.54,150.53,11.66728917]
[1746682146477,6.64187035,150.56,150.53,11.66728917]
[1746682146987,6.64187035,150.56,150.54,11.66728917]
[1746682147180,6.64142923,150.57,150.54,11.66728917]
[1746682148964,34.91229148,150.57,150.53,11.66728917]
[1746682149775,23.24500231,150.57,150.55,11.66728917]
[1746682149982,6.64142923,150.57,150.56,11.66728917]
[1746682150866,6.64054718,150.59,150.56,11.66728917]
[1746682151069,23.24191513,150.59,150.56,11.66728917]
[1746682151989,18.30783635,150.59,150.54,16.14]
[1746682152185,11.66728917,150.57,150.54,16.14]
[1746682152727,23.24191513,150.59,150.54,27.80728917]
[1746682152867,23.24191513,150.59,150.54,16.14]
[1746682153073,34.9092043,150.59,150.55,11.66728917]
[1746682153467,34.9092043,150.59,150.54,16.14]
[1746682153676,34.9092043,150.59,150.54,27.80728917]
[1746682154070,11.66728917,150.58,150.54,27.80728917]
[1746682154374,11.66728917,150.57,150.53,13.25988917]
[1746682154580,30.31693803,150.58,150.53,13.25988917]
[1746682155181,6.64142923,150.57,150.53,13.25988917]
[1746682156791,6.64142923,150.57,150.54,11.66728917]
[1746682158287,28.26865712,150.59,150.53,1.5926]
[1746682158288,23.24191513,150.59,150.56,11.66728917]
[1746682158490,34.9092043,150.59,150.55,11.66728917]
[1746682158668,23.24191513,150.59,150.55,11.66728917]
[1746682159289,6.64054718,150.59,150.56,11.66728917]
[1746682159596,6.64054718,150.59,150.58,11.66728917]
[1746682159795,6.64054718,150.59,150.57,11.66728917]
[1746682160293,6.64027634,150.6,150.58,11.66728917]
[1746682160705,6.64027634,150.6,150.57,11.66728917]
[1746682160996,6.64027634,150.6,150.56,11.66728917]
[1746682161371,6.64027634,150.6,150.57,11.66728917]
[1746682162194,16.59898049,150.62,150.55,16.14]
[1746682162195,30.31693803,150.61,150.55,16.14]
[1746682162402,11.66728917,150.6,150.56,11.66728917]
[1746682163200,30.31693803,150.61,150.56,11.66728917]
[1746682163994,11.66728917,150.59,150.55,16.14]
[1746682164194,11.66728917,150.58,150.53,13.25988917]
[1746682164576,11.66728917,150.57,150.53,13.25988917]
[1746682164774,11.66728917,150.58,150.53,13.25988917]
[1746682165799,23.24345861,150.58,150.53,13.25988917]
[1746682165994,34.91074778,150.58,150.53,13.25988917]
[1746682166184,23.24345861,150.58,150.55,11.66728917]
[1746682166780,23.24345861,150.58,150.54,11.66728917]
[1746682171306,6.64098817,150.58,150.55,11.66728917]
[1746682171509,6.64098817,150.58,150.57,11.66728917]
[1746682171715,6.64098817,150.58,150.56,11.66728917]
[1746682172214,6.64098817,150.58,150.57,11.66728917]
[1746682172404,25.2897551,150.6,150.57,11.66728917]
[1746682172608,25.2897551,150.6,150.53,1.5926]
[1746682172609,25.2897551,150.6,150.56,11.66728917]
[1746682172796,41.8900207,150.6,150.56,11.66728917]
[1746682173415,23.24037184,150.6,150.57,11.66728917]
[1746682174487,23.24037184,150.6,150.56,11.66728917]
[1746682174687,11.66728917,150.57,150.52,11.66728917]
[1746682175202,11.66728917,150.57,150.53,11.66728917]
[1746682175703,6.64187035,150.56,150.5,1.5289]
[1746682175903,6.64187035,150.56,150.54,11.66728917]
[1746682176306,6.64098817,150.58,150.55,11.66728917]
[1746682176526,6.64098817,150.58,150.56,11.66728917]
[1746682177297,16.6013756,150.59,150.56,11.66728917]
[1746682178720,6.64010624,150.6,150.56,11.66728917]
[1746682179016,6.64010624,150.6,150.57,11.66728917]
[1746682179220,6.64010624,150.6,150.56,11.66728917]
[1746682179397,6.64010624,150.6,150.57,11.66728917]
[1746682180297,6.64010624,150.6,150.58,11.66728917]
[1746682181001,6.63966536,150.61,150.57,11.66728917]
[1746682181197,6.63966536,150.61,150.58,11.66728917]
[1746682181404,6.63966536,150.61,150.59,11.66728917]
[1746682182118,6.63966536,150.61,150.58,11.66728917]
[1746682186715,6.63966536,150.61,150.56,1.641]
[1746682186916,6.63966536,150.61,150.57,11.66728917]
[1746682187225,6.63966536,150.61,150.58,11.66728917]
[1746682187723,23.23827996,150.62,150.58,11.66728917]
[1746682191229,34.90556913,150.62,150.58,11.66728917]
[1746682191532,11.66728917,150.6,150.56,16.14]
[1746682193828,6.64054718,150.59,150.56,16.14]
[1746682194332,6.64054718,150.59,150.56,27.80728917]
[1746682194526,6.64054718,150.59,150.56,16.14]
[1746682194828,11.66728917,150.58,150.53,11.66728917]
[1746682196436,6.64142923,150.57,150.52,17.6985]
[1746682196732,6.64142923,150.57,150.53,11.66728917]
[1746682196941,23.24500231,150.57,150.53,11.66728917]
[1746682197133,34.91229148,150.57,150.52,29.36578917]
[1746682197435,34.91229148,150.57,150.53,11.66728917]
[1746682200047,34.91229148,150.57,150.52,17.6985]
[1746682200244,34.91229148,150.57,150.53,11.66728917]
[1746682200744,23.24500231,150.57,150.53,11.66728917]
[1746682201055,34.91229148,150.57,150.53,11.66728917]
[1746682201522,34.91229148,150.57,150.52,29.36578917]
[1746682201929,11.66728917,150.56,150.52,17.6985]
[1746682202717,6.64231152,150.55,150.52,29.36578917]
[1746682203232,6.64231152,150.55,150.53,11.66728917]
[1746682203432,6.64231152,150.55,150.54,11.66728917]
[1746682205152,6.64142923,150.57,150.54,11.66728917]
[1746682205742,6.64142923,150.57,150.56,11.66728917]
[1746682206333,6.64054718,150.59,150.56,11.66728917]
[1746682206534,6.64054718,150.59,150.58,11.66728917]
[1746682206740,6.64054718,150.59,150.57,11.66728917]
[1746682207545,6.63966536,150.61,150.58,11.66728917]
[1746682207851,6.63966536,150.61,150.59,11.66728917]
[1746682208535,23.2383639,150.62,150.59,11.66728917]
[1746682210555,16.59913937,150.62,150.59,11.66728917]
[1746682211549,23.2383639,150.62,150.59,11.66728917]
[1746682212236,6.63922453,150.62,150.59,11.66728917]
[1746682212549,6.63922453,150.62,150.57,1.5046]
[1746682212771,6.63922453,150.62,150.59,11.66728917]
[1746682213747,34.90324038,150.63,150.58,11.66728917]
[1746682214131,23.23595121,150.63,150.59,11.66728917]
[1746682215550,34.90324038,150.63,150.59,11.66728917]
[1746682215853,23.23595121,150.63,150.59,11.66728917]
[1746682216051,34.90324038,150.63,150.59,11.66728917]
[1746682217031,23.23595121,150.63,150.59,11.66728917]
[1746682217826,6.63878377,150.63,150.57,1.5046]
[1746682218245,6.63878377,150.63,150.61,11.66728917]
[1746682218438,6.63878377,150.63,150.6,11.66728917]
[1746682218851,6.63878377,150.63,150.57,1.5046]
[1746682219055,18.30607294,150.63,150.59,11.66728917]
[1746682219229,6.63878377,150.63,150.59,11.66728917]
[1746682219435,6.63878377,150.63,150.6,11.66728917]
[1746682221048,6.63878377,150.63,150.57,1.5046]
[1746682221247,6.63878377,150.63,150.6,11.66728917]
[1746682221446,32.63966536,150.61,150.57,1.5046]
[1746682221649,32.63966536,150.61,150.57,13.17188917]
[1746682223453,60.90611793,150.61,150.57,1.5046]
[1746682223656,60.90611793,150.61,150.56,27.78728917]
[1746682224041,11.66728917,150.6,150.56,16.12]
[1746682224849,60.90611793,150.61,150.56,27.78728917]
[1746682226353,49.23882876,150.61,150.56,27.78728917]
[1746682226545,60.90611793,150.61,150.56,27.78728917]
[1746682226855,60.90611793,150.61,150.56,11.66728917]
[1746682227940,60.87472646,150.61,150.57,11.66728917]
[1746682228366,49.20743729,150.61,150.57,11.66728917]
[1746682230874,49.20743729,150.61,150.58,11.66728917]
[1746682231077,49.20743729,150.61,150.57,11.66728917]
[1746682232563,49.20743729,150.61,150.58,11.66728917]
[1746682240242,49.20743729,150.61,150.55,16.12]
[1746682240758,49.20743729,150.61,150.58,11.66728917]
[1746682240969,49.20743729,150.61,150.55,16.12]
[1746682241354,30.31693803,150.6,150.55,27.78728917]
[1746682241876,30.31693803,150.6,150.55,16.12]
[1746682242171,30.31693803,150.6,150.55,27.78728917]
[1746682242475,6.64054718,150.59,150.55,27.78728917]
[1746682242844,6.64054718,150.59,150.53,1.5834]
[1746682243046,6.64054718,150.59,150.55,11.66728917]
[1746682243763,23.24191513,150.59,150.55,11.66728917]
[1746682244666,23.24191513,150.59,150.53,1.5834]
[1746682244667,11.66728917,150.56,150.53,1.5834]
[1746682244869,157.84191513,150.59,150.53,11.66728917]
[1746682245171,157.84191513,150.59,150.57,11.66728917]
[1746682245172,141.24054718,150.59,150.57,11.66728917]
[1746682246472,141.24054718,150.59,150.54,1.6645]
[1746682246773,141.24054718,150.59,150.55,11.66728917]
[1746682247675,141.24054718,150.59,150.56,11.66728917]
[1746682247859,141.24054718,150.59,150.57,11.66728917]
[1746682248577,134.6,150.59,150.58,11.66728917]
[1746682248752,6.64014171,150.6,150.58,11.66728917]
[1746682249070,6.64014171,150.6,150.59,11.66728917]
[1746682249973,6.63922453,150.62,150.58,11.66728917]
[1746682250177,18.3065137,150.62,150.57,11.66728917]
[1746682255378,11.66728917,150.61,150.56,11.66728917]
[1746682255582,11.66728917,150.61,150.54,24.44708506]
[1746682255768,11.66728917,150.61,150.56,11.66728917]
[1746682256155,18.64964886,150.63,150.54,17.8045]
[1746682256156,18.30739541,150.6,150.54,17.8045]
[1746682256356,11.66728917,150.59,150.54,29.47178917]
[1746682256558,11.66728917,150.59,150.54,17.8045]
[1746682256970,11.66728917,150.59,150.54,29.47178917]
[1746682257802,6.64098817,150.58,150.54,29.47178917]
[1746682258281,6.64098817,150.58,150.55,11.66728917]
[1746682259669,28.26670591,150.61,150.56,11.66728917]
[1746682260679,6.64010624,150.6,150.56,11.66728917]
[1746682260890,6.64010624,150.6,150.57,11.66728917]
[1746682261773,6.63966536,150.61,150.57,11.66728917]
[1746682266368,11.66728917,150.6,150.55,11.66728917]
[1746682267087,11.66728917,150.6,150.54,17.8045]
[1746682267293,11.66728917,150.59,150.54,17.8045]
[1746682267495,11.66728917,150.59,150.54,29.47178917]
[1746682267695,6.64098817,150.58,150.54,29.47178917]
[1746682268390,6.64098817,150.58,150.55,11.66728917]
[1746682269801,6.64054718,150.59,150.55,11.66728917]
[1746682270593,11.66728917,150.58,150.54,17.8045]
[1746682270773,18.30783635,150.59,150.54,29.47178917]
[1746682271091,6.64054718,150.59,150.55,11.66728917]
[1746682271274,6.64054718,150.59,150.56,11.66728917]
[1746682271900,6.64054718,150.59,150.57,11.66728917]
[1746682272598,6.63966536,150.61,150.58,11.66728917]
[1746682272970,6.63966536,150.61,150.57,11.66728917]
[1746682275003,18.30695453,150.61,150.56,11.66728917]
[1746682275697,11.66728917,150.6,150.55,11.66728917]
[1746682276001,6.64054718,150.59,150.54,17.8045]
[1746682276297,6.64054718,150.59,150.55,11.66728917]
[1746682278394,6.64054718,150.59,150.57,11.66728917]
[1746682278598,6.63966536,150.61,150.58,11.66728917]
[1746682279101,6.63966536,150.61,150.57,11.66728917]
[1746682279596,6.63966536,150.61,150.58,11.66728917]
[1746682279806,18.30607294,150.63,150.58,11.66728917]
[1746682279991,11.66728917,150.62,150.57,11.66728917]
[1746682280502,6.63966536,150.61,150.57,11.66728917]
[1746682281081,18.30695453,150.61,150.54,106.953]
[1746682281295,23.23882876,150.61,150.57,11.66728917]
[1746682282298,23.23882876,150.61,150.54,24.153]
[1746682282299,11.66728917,150.58,150.54,16.14]
[1746682282499,11.66728917,150.57,150.54,16.14]
[1746682282818,30.31693803,150.58,150.54,16.14]
[1746682283302,23.24191513,150.59,150.55,11.66728917]
[1746682284317,6.64054718,150.59,150.54,16.14]
[1746682284501,141.24022081,150.6,150.56,1.602]
[1746682284691,141.24022081,150.6,150.58,11.66728917]
[1746682284891,6.64022081,150.6,150.58,11.66728917]
[1746682285609,23.23819448,150.62,150.58,11.66728917]
[1746682285911,34.90548365,150.62,150.57,11.66728917]
[1746682286809,23.23819448,150.62,150.58,11.66728917]
[1746682288810,34.90548365,150.62,150.58,11.66728917]
[1746682289018,34.90548365,150.62,150.57,11.66728917]
[1746682289486,34.90548365,150.62,150.56,1.602]
[1746682289682,34.90548365,150.62,150.57,11.66728917]
[1746682292317,34.90548365,150.62,150.56,13.26928917]
[1746682292526,11.66728917,150.6,150.56,1.602]
[1746682293996,6.64054718,150.59,150.56,1.602]
[1746682298425,11.66728917,150.58,150.54,16.14]
[1746682299328,11.66728917,150.58,150.53,11.66728917]
[1746682299791,34.9092043,150.59,150.54,11.66728917]
[1746682300520,23.24191513,150.59,150.56,11.66728917]
[1746682300700,23.24191513,150.59,150.55,11.66728917]
[1746682301195,23.24191513,150.59,150.54,11.66728917]
[1746682301425,34.9092043,150.59,150.54,11.66728917]
[1746682303220,11.66728917,150.58,150.52,1.5746]
[1746682303420,11.66728917,150.57,150.52,13.24188917]
[1746682303918,11.66728917,150.57,150.53,11.66728917]
[1746682304420,11.66728917,150.56,150.52,1.5746]
[1746682306223,6.64231152,150.55,150.52,1.5746]
[1746682306423,6.64231152,150.55,150.52,13.24188917]
[1746682315124,6.64187035,150.56,150.53,11.66728917]
[1746682317732,14.10277501,150.57,150.53,7.46134578]
[1746682317929,7.46134578,150.55,150.51,7.46134578]
[1746682318108,7.46134578,150.52,150.49,1.5717]
[1746682318436,7.46134578,150.52,150.47,6.161]
[1746682318730,7.46134578,150.53,150.48,7.46134578]
[1746682319719,11.66488464,150.53,150.48,11.66488464]
[1746682320407,11.66488464,150.52,150.48,11.66488464]
[1746682321321,11.66488464,150.49,150.46,16.2]
[1746682321707,6.64495979,150.49,150.46,27.86488464]
[1746682323015,6.64451827,150.5,150.46,27.86488464]
[1746682324734,18.30940291,150.5,150.46,27.86488464]
[1746682325249,18.30940291,150.5,150.46,16.2]
[1746682325533,11.66488464,150.47,150.42,27.88488464]
[1746682325707,11.66488464,150.47,150.43,11.66488464]
[1746682326032,18.64964886,150.48,150.43,11.66488464]
[1746682326229,11.66488464,150.47,150.43,11.66488464]
[1746682327112,18.64964886,150.48,150.42,16.22]
[1746682327113,11.66488464,150.45,150.42,16.22]
[1746682327315,11.66488464,150.45,150.41,13.28868464]
[1746682328634,11.66488464,150.45,150.4,11.66488464]
[1746682329215,6.6471683,150.44,150.4,11.66488464]
[1746682329732,6.6471683,150.44,150.41,11.66488464]
[1746682329938,6.6471683,150.44,150.38,22.86980261]
[1746682330126,6.6471683,150.44,150.41,11.66488464]
[1746682331634,6.64584302,150.47,150.43,11.66488464]
[1746682331826,6.64584302,150.47,150.39,18.31426292]
[1746682331827,6.64584302,150.47,150.44,11.66488464]
[1746682332031,6.64584302,150.47,150.46,11.66488464]
[1746682332339,56.3145335,150.5,150.45,11.66488464]
[1746682333641,6.64495979,150.49,150.45,11.66488464]
[1746682334336,18.30984443,150.49,150.44,11.66488464]
[1746682334536,30.3145335,150.48,150.44,11.66488464]
[1746682334716,30.3145335,150.48,150.43,11.66488464]
[1746682335420,30.3145335,150.48,150.42,7.83]
[1746682335622,6.64628472,150.46,150.42,1.5051]
[1746682335824,11.66488464,150.44,150.4,11.66488464]
[1746682336026,11.66488464,150.44,150.38,24.2502]
[1746682336224,11.66488464,150.44,150.39,11.66488464]
[1746682336537,30.3145335,150.45,150.41,11.66488464]
[1746682337843,6.6471683,150.44,150.41,11.66488464]
[1746682338946,6.6471683,150.44,150.4,11.66488464]
[1746682339246,6.6471683,150.44,150.41,11.66488464]
[1746682340946,11.66488464,150.42,150.38,17.793]
[1746682341336,30.3145335,150.43,150.38,29.45788464]
[1746682341643,49.26508906,150.44,150.4,11.66488464]
[1746682342247,49.26508906,150.44,150.41,11.66488464]
[1746682342547,6.6471683,150.44,150.42,11.66488464]
[1746682342933,6.64628472,150.46,150.42,11.66488464]
[1746682343346,18.31116936,150.46,150.42,11.66488464]
[1746682343547,18.31116936,150.46,150.41,11.66488464]
[1746682344741,34.92688117,150.46,150.41,11.66488464]
[1746682345446,11.66488464,150.45,150.4,11.66488464]
[1746682345651,23.26199653,150.46,150.38,17.793]
[1746682345652,11.66488464,150.43,150.38,17.793]
[1746682345950,11.66488464,150.43,150.38,29.45788464]
[1746682346461,26.0,150.44,150.38,29.45788464]
[1746682346636,6.64805212,150.42,150.39,11.66488464]
[1746682347249,6.64805212,150.42,150.4,11.66488464]
[1746682347455,6.64628472,150.46,150.41,11.66488464]
[1746682347653,6.64628472,150.46,150.44,11.66488464]
[1746682348537,6.64628472,150.46,150.4,6.5633]
[1746682348852,6.64584302,150.47,150.45,11.66488464]
[1746682349245,6.64584302,150.47,150.44,11.66488464]
[1746682351449,6.64584302,150.47,150.45,11.66488464]
[1746682351834,6.64584302,150.47,150.44,11.66488464]
[1746682352335,6.64540138,150.48,150.44,11.66488464]
[1746682353938,6.64540138,150.48,150.45,11.66488464]
[1746682354460,6.64540138,150.48,150.4,96.01215135]
[1746682354461,34.92378947,150.48,150.4,89.3633]
[1746682354654,11.66488464,150.47,150.43,11.66488464]
[1746682354862,34.92378947,150.48,150.43,11.66488464]
[1746682355378,34.92378947,150.48,150.42,11.66488464]
[1746682355379,11.66488464,150.46,150.42,11.66488464]
[1746682355661,6.64672648,150.45,150.42,11.66488464]
[1746682356355,6.64672648,150.45,150.43,11.66488464]
[1746682356865,6.64672648,150.45,150.42,11.66488464]
[1746682357458,6.64672648,150.45,150.4,6.5633]
[1746682357657,6.64628472,150.46,150.42,11.66488464]
[1746682360067,6.64628472,150.46,150.43,11.66488464]
[1746682360275,6.64628472,150.46,150.44,11.66488464]
[1746682361281,6.64495979,150.49,150.45,11.66488464]
[1746682361570,6.64495979,150.49,150.46,11.66488464]
[1746682362965,6.64495979,150.49,150.48,11.66488464]
[1746682364062,23.25582573,150.5,150.47,11.66488464]
[1746682365174,6.64451827,150.5,150.49,11.66488464]
[1746682365367,6.64451827,150.5,150.48,11.66488464]
[1746682366070,34.92069859,150.5,150.44,1.5173]
[1746682366277,34.92069859,150.5,150.46,11.66488464]
[1746682366771,23.25581395,150.5,150.46,11.66488464]
[1746682367075,11.66488464,150.49,150.44,1.5173]
[1746682367270,23.25581395,150.5,150.43,16.14]
[1746682367271,11.66488464,150.48,150.43,16.14]
[1746682367576,11.66488464,150.48,150.43,27.80488464]
[1746682367769,11.66488464,150.47,150.43,27.80488464]
[1746682368677,23.25581395,150.5,150.45,11.66488464]
[1746682368972,34.92069859,150.5,150.45,11.66488464]
[1746682369150,6.64540138,150.48,150.44,11.66488464]
[1746682369351,18.31028602,150.48,150.44,11.66488464]
[1746682369670,6.64540138,150.48,150.44,11.66488464]
[1746682370571,18.31028602,150.48,150.43,27.80488464]
[1746682370868,11.66488464,150.47,150.43,27.80488464]
[1746682371275,6.64584302,150.47,150.43,27.80488464]
[1746682371576,18.31072766,150.47,150.43,27.80488464]
[1746682374159,11.66488464,150.46,150.43,16.14]
[1746682374362,11.66488464,150.46,150.41,11.66488464]
[1746682374563,11.66488464,150.45,150.4,1.5174]
[1746682374763,11.66488464,150.43,150.39,16.14]
[1746682375078,11.66488464,150.42,150.39,16.14]
[1746682375278,18.64964886,150.44,150.39,16.14]
[1746682375586,11.66488464,150.42,150.39,16.14]
[1746682375885,6.64849411,150.41,150.39,16.14]
[1746682378579,18.31249482,150.43,150.39,16.14]
[1746682380382,6.64761018,150.43,150.4,11.66488464]
[1746682381279,6.64761018,150.43,150.39,27.80488464]
[1746682381795,18.31249482,150.43,150.39,27.80488464]
[1746682382891,6.64761018,150.43,150.39,27.80488464]
[1746682383096,18.31249482,150.43,150.39,27.80488464]
[1746682383387,6.64761018,150.43,150.39,27.80488464]
[1746682383592,6.64761018,150.43,150.4,11.66488464]
[1746682383783,6.64726628,150.44,150.41,11.66488464]
[1746682384693,6.64672648,150.45,150.41,11.66488464]
[1746682385468,6.6463767,150.46,150.43,11.66488464]
[1746682385795,18.64964886,150.49,150.44,11.66488464]
[1746682386103,56.3145335,150.49,150.44,11.66488464]
[1746682386391,11.66488464,150.48,150.43,11.66488464]
[1746682386589,11.66488464,150.48,150.44,11.66488464]
[1746682386885,18.31028602,150.48,150.44,11.66488464]
[1746682388385,11.66488464,150.46,150.41,1.5526]